[Event "Titled Tuesday Blitz March 28 Early 2023"]
[White "Rosen, Eric"]
[Black "Thecourseoisildur"]
[WhiteFideId "2032562"]
[WhiteElo "2331"]
[BlackElo "2454"]
[Result "0-1"]
[Round "08"]
[TimeControl "180+2"]
[Date "2023.03.28"]
[WhiteClock "0:00:06"]
[BlackClock "0:00:10"]

1. d4 {[%clk 0:03:00]}  Nf6 {[%clk 0:03:00]} 2. Bf4 {[%clk 0:03:00]}  g6 {[%clk 0:02:59]} 3. Nc3 {[%clk 0:03:00]}  d5 {[%clk 0:02:55]} 4. e3 {[%clk 0:02:58]}  Bg7 {[%clk 0:02:52]} 5. h4 {[%clk 0:02:58]}  c6 {[%clk 0:02:50]} 6. Nf3 {[%clk 0:02:57]}  Qb6 {[%clk 0:02:45]} 7. a3 {[%clk 0:02:56]}  Bf5 {[%clk 0:02:42]} 8. Na4 {[%clk 0:02:43]}  Qa5+ {[%clk 0:02:38]} 9. c3 {[%clk 0:02:43]}  Nbd7 {[%clk 0:02:35]} 10. b4 {[%clk 0:02:44]}  Qd8 {[%clk 0:02:34]} 11. Nc5 {[%clk 0:02:44]}  b6 {[%clk 0:02:29]} 12. Nd3 {[%clk 0:02:43]}  Ne4 {[%clk 0:02:26]} 13. Qb3 {[%clk 0:02:31]}  Be6 {[%clk 0:02:04]} 14. h5 {[%clk 0:02:28]}  c5 {[%clk 0:02:00]} 15. Nde5 {[%clk 0:02:19]}  c4 {[%clk 0:01:52]} 16. Qc2 {[%clk 0:02:09]}  Nxe5 {[%clk 0:01:38]} 17. Nxe5 {[%clk 0:02:06]}  g5 {[%clk 0:01:22]} 18. h6 {[%clk 0:01:51]}  Bxe5 {[%clk 0:00:52]} 19. Bxe5 {[%clk 0:01:51]}  f6 {[%clk 0:00:52]} 20. Bh2 {[%clk 0:01:49]}  Bf5 {[%clk 0:00:47]} 21. f3 {[%clk 0:01:25]}  Ng3 {[%clk 0:00:44]} 22. e4 {[%clk 0:01:24]}  Nxh1 {[%clk 0:00:32]} 23. exf5 {[%clk 0:01:25]}  O-O {[%clk 0:00:29]} 24. O-O-O {[%clk 0:01:13]}  Qe8 {[%clk 0:00:28]} 25. a4 {[%clk 0:00:59]}  Qh5 {[%clk 0:00:26]} 26. g4 {[%clk 0:00:59]}  Qh4 {[%clk 0:00:21]} 27. Qg2 {[%clk 0:00:54]}  Qf2 {[%clk 0:00:14]} 28. Bg1 {[%clk 0:00:31]}  Qh4 {[%clk 0:00:07]} 29. Kd2 {[%clk 0:00:21]}  Ng3 {[%clk 0:00:05]} 30. Bf2 {[%clk 0:00:13]}  Nxf1+ {[%clk 0:00:05]} 31. Rxf1 {[%clk 0:00:14]}  Qxh6 {[%clk 0:00:05]} 32. Re1 {[%clk 0:00:13]}  Qg7 {[%clk 0:00:05]} 33. Re6 {[%clk 0:00:12]}  Rf7 {[%clk 0:00:04]} 34. Bg3 {[%clk 0:00:12]}  h6 {[%clk 0:00:04]} 35. Qh2 {[%clk 0:00:11]}  Rd8 {[%clk 0:00:03]} 36. Bb8 {[%clk 0:00:09]}  Rd7 {[%clk 0:00:03]} 37. Bg3 {[%clk 0:00:07]}  Qh7 {[%clk 0:00:03]} 38. Qh5 {[%clk 0:00:06]}  Rf8 {[%clk 0:00:03]} 39. Kc2 {[%clk 0:00:07]}  Kg7 {[%clk 0:00:03]} 40. Bf2 {[%clk 0:00:07]}  Kg8 {[%clk 0:00:03]} 41. Kb2 {[%clk 0:00:07]}  Kh8 {[%clk 0:00:03]} 42. Ka3 {[%clk 0:00:08]}  Kg7 {[%clk 0:00:04]} 43. Bg3 {[%clk 0:00:08]}  Rh8 {[%clk 0:00:02]} 44. Re2 {[%clk 0:00:07]}  Qg8 {[%clk 0:00:02]} 45. Qh1 {[%clk 0:00:06]}  Qf7 {[%clk 0:00:03]} 46. f4 {[%clk 0:00:04]}  gxf4 {[%clk 0:00:02]} 47. Bxf4 {[%clk 0:00:05]}  h5 {[%clk 0:00:02]} 48. g5 {[%clk 0:00:06]}  fxg5 {[%clk 0:00:01]} 49. Be5+ {[%clk 0:00:05]}  Kg8 {[%clk 0:00:02]} 50. Bxh8 {[%clk 0:00:05]}  Kxh8 {[%clk 0:00:03]} 51. Re5 {[%clk 0:00:05]}  Qf6 {[%clk 0:00:02]} 52. Qxh5+ {[%clk 0:00:04]}  Kg7 {[%clk 0:00:02]} 53. Qe2 {[%clk 0:00:03]}  g4 {[%clk 0:00:01]} 54. Qxg4+ {[%clk 0:00:03]}  Kf8 {[%clk 0:00:01]} 55. Re2 {[%clk 0:00:03]}  Rd6 {[%clk 0:00:01]} 56. Rg2 {[%clk 0:00:03]}  Ke8 {[%clk 0:00:02]} 57. Qg8+ {[%clk 0:00:04]}  Qf8 {[%clk 0:00:02]} 58. Qg6+ {[%clk 0:00:04]}  Rxg6 {[%clk 0:00:02]} 59. fxg6 {[%clk 0:00:05]}  Qg7 {[%clk 0:00:02]} 60. a5 {[%clk 0:00:04]}  e6 {[%clk 0:00:02]} 61. axb6 {[%clk 0:00:04]}  axb6 {[%clk 0:00:03]} 62. Ka4 {[%clk 0:00:04]}  Qd7+ {[%clk 0:00:03]} 63. Ka3 {[%clk 0:00:04]}  Kf8 {[%clk 0:00:02]} 64. g7+ {[%clk 0:00:03]}  Kg8 {[%clk 0:00:03]} 65. Rg3 {[%clk 0:00:04]}  Qa7+ {[%clk 0:00:02]} 66. Kb2 {[%clk 0:00:03]}  Qc7 {[%clk 0:00:03]} 67. Rg2 {[%clk 0:00:01]}  e5 {[%clk 0:00:03]} 68. dxe5 {[%clk 0:00:02]}  Qxe5 {[%clk 0:00:04]} 69. Rd2 {[%clk 0:00:02]}  Kxg7 {[%clk 0:00:02]} 70. Rc2 {[%clk 0:00:02]}  d4 {[%clk 0:00:02]} 71. cxd4 {[%clk 0:00:02]}  Qxd4+ {[%clk 0:00:03]} 72. Ka3 {[%clk 0:00:01]}  Qd3+ {[%clk 0:00:04]} 73. Kb2 {[%clk 0:00:02]}  Qb3+ {[%clk 0:00:04]} 74. Kc1 {[%clk 0:00:02]}  c3 {[%clk 0:00:05]} 75. Rg2+ {[%clk 0:00:02]}  Kf6 {[%clk 0:00:05]} 76. b5 {[%clk 0:00:03]}  Qa3+ {[%clk 0:00:04]} 77. Kb1 {[%clk 0:00:02]}  Qb4+ {[%clk 0:00:05]} 78. Kc1 {[%clk 0:00:02]}  Qf4+ {[%clk 0:00:05]} 79. Kc2 {[%clk 0:00:01]}  Qe4+ {[%clk 0:00:05]} 80. Kb3 {[%clk 0:00:01]}  Qxg2 {[%clk 0:00:06]} 81. Kxc3 {[%clk 0:00:02]}  Qd5 {[%clk 0:00:06]} 82. Kb4 {[%clk 0:00:02]}  Qc5+ {[%clk 0:00:06]} 83. Ka4 {[%clk 0:00:03]}  Qc4+ {[%clk 0:00:07]} 84. Ka3 {[%clk 0:00:03]}  Qxb5 {[%clk 0:00:08]} 85. Ka2 {[%clk 0:00:03]}  Ke5 {[%clk 0:00:09]} 86. Ka1 {[%clk 0:00:04]}  Kd4 {[%clk 0:00:09]} 87. Ka2 {[%clk 0:00:05]}  Kc3 {[%clk 0:00:10]} 88. Ka3 {[%clk 0:00:06]}  Qa5# {[%clk 0:00:10]} 0-1


[Site "https://www.chess.com"]

[Event "Titled Tuesday Blitz March 28 Early 2023"]
[White "Liu, Casper"]
[Black "Jain Kashish Manoj"]
[WhiteFideId "1454153"]
[BlackFideId "35081098"]
[WhiteElo "2221"]
[BlackElo "2191"]
[Result "0-1"]
[Round "08"]
[TimeControl "180+2"]
[Date "2023.03.28"]
[WhiteClock "0:00:14"]
[BlackClock "0:00:05"]

1. d4 {[%clk 0:03:00]}  Nf6 {[%clk 0:02:41]} 2. c4 {[%clk 0:03:01]}  e6 {[%clk 0:02:37]} 3. Nc3 {[%clk 0:03:01]}  b6 {[%clk 0:02:30]} 4. e4 {[%clk 0:03:01]}  Bb4 {[%clk 0:02:07]} 5. e5 {[%clk 0:03:00]}  Ne4 {[%clk 0:02:02]} 6. Qf3 {[%clk 0:02:59]}  Bb7 {[%clk 0:02:01]} 7. Bd3 {[%clk 0:02:59]}  Nc5 {[%clk 0:01:58]} 8. Qg3 {[%clk 0:02:55]}  Nxd3+ {[%clk 0:01:57]} 9. Qxd3 {[%clk 0:02:56]}  Bxg2 {[%clk 0:01:55]} 10. Qg3 {[%clk 0:02:54]}  Bxh1 {[%clk 0:01:53]} 11. Qxg7 {[%clk 0:02:49]}  Rf8 {[%clk 0:01:53]} 12. Bg5 {[%clk 0:02:49]}  Be7 {[%clk 0:01:52]} 13. Bh6 {[%clk 0:02:49]}  Nc6 {[%clk 0:01:40]} 14. O-O-O {[%clk 0:02:46]}  d5 {[%clk 0:01:20]} 15. f3 {[%clk 0:02:32]}  Qd7 {[%clk 0:00:40]} 16. Qxh7 {[%clk 0:02:06]}  O-O-O {[%clk 0:00:39]} 17. Bxf8 {[%clk 0:02:06]}  Rxf8 {[%clk 0:00:33]} 18. Qh3 {[%clk 0:01:59]}  Rg8 {[%clk 0:00:26]} 19. Nge2 {[%clk 0:01:51]}  Bg2 {[%clk 0:00:23]} 20. Qh7 {[%clk 0:01:40]}  Qe8 {[%clk 0:00:17]} 21. Rg1 {[%clk 0:01:38]}  Rh8 {[%clk 0:00:16]} 22. Qd3 {[%clk 0:01:37]}  dxc4 {[%clk 0:00:16]} 23. Qe4 {[%clk 0:01:31]}  Rh4 {[%clk 0:00:16]} 24. Qe3 {[%clk 0:01:20]}  Bh3 {[%clk 0:00:16]} 25. Kb1 {[%clk 0:01:10]}  Nb4 {[%clk 0:00:16]} 26. a3 {[%clk 0:00:53]}  Bf5+ {[%clk 0:00:16]} 27. Ne4 {[%clk 0:00:53]}  Nd5 {[%clk 0:00:17]} 28. Qc1 {[%clk 0:00:51]}  Qb5 {[%clk 0:00:11]} 29. Ng3 {[%clk 0:00:47]}  Bg6 {[%clk 0:00:10]} 30. Ka1 {[%clk 0:00:47]}  Rxh2 {[%clk 0:00:09]} 31. f4 {[%clk 0:00:38]}  Qb3 {[%clk 0:00:09]} 32. Nd2 {[%clk 0:00:34]}  Qb5 {[%clk 0:00:08]} 33. Nxc4 {[%clk 0:00:34]}  Kb7 {[%clk 0:00:06]} 34. f5 {[%clk 0:00:26]}  Bxf5 {[%clk 0:00:06]} 35. Nxf5 {[%clk 0:00:26]}  exf5 {[%clk 0:00:07]} 36. Rg8 {[%clk 0:00:26]}  Qb3 {[%clk 0:00:06]} 37. Nd6+ {[%clk 0:00:25]}  Bxd6 {[%clk 0:00:06]} 38. exd6 {[%clk 0:00:25]}  Rc2 {[%clk 0:00:06]} 39. Qb1 {[%clk 0:00:23]}  Nc3 {[%clk 0:00:06]} 40. Qh1+ {[%clk 0:00:20]}  c6 {[%clk 0:00:06]} 41. Rb8+ {[%clk 0:00:14]}  Kxb8 {[%clk 0:00:05]} 42. d7 {[%clk 0:00:14]}  Qa2# {[%clk 0:00:05]} 0-1


[Site "https://www.chess.com"]

[Event "Titled Tuesday Blitz March 28 Early 2023"]
[White "Yaniuk, Volodymyr"]
[Black "Nunez V, Gustavo Eduardo"]
[WhiteFideId "14133083"]
[BlackFideId "4403690"]
[WhiteElo "2141"]
[BlackElo "2228"]
[Result "1-0"]
[Round "08"]
[TimeControl "180+2"]
[Date "2023.03.28"]
[WhiteClock "0:01:53"]
[BlackClock "0:01:18"]

1. c4 {[%clk 0:03:00]}  e5 {[%clk 0:02:23]} 2. Nc3 {[%clk 0:02:58]}  g6 {[%clk 0:02:22]} 3. Nf3 {[%clk 0:02:59]}  Bg7 {[%clk 0:02:22]} 4. h4 {[%clk 0:02:58]}  h5 {[%clk 0:02:20]} 5. d4 {[%clk 0:02:57]}  exd4 {[%clk 0:02:20]} 6. Nxd4 {[%clk 0:02:58]}  Ne7 {[%clk 0:02:18]} 7. Bg5 {[%clk 0:02:58]}  d6 {[%clk 0:02:18]} 8. Qd2 {[%clk 0:02:57]}  O-O {[%clk 0:02:15]} 9. Nd5 {[%clk 0:02:56]}  f6 {[%clk 0:02:11]} 10. Bf4 {[%clk 0:02:51]}  Nxd5 {[%clk 0:02:06]} 11. cxd5 {[%clk 0:02:52]}  Re8 {[%clk 0:02:04]} 12. e3 {[%clk 0:02:52]}  Nd7 {[%clk 0:02:04]} 13. Ne6 {[%clk 0:02:50]}  Rxe6 {[%clk 0:02:01]} 14. dxe6 {[%clk 0:02:51]}  Ne5 {[%clk 0:02:01]} 15. Bxe5 {[%clk 0:02:46]}  fxe5 {[%clk 0:02:02]} 16. Bc4 {[%clk 0:02:46]}  Qe7 {[%clk 0:02:01]} 17. O-O-O {[%clk 0:02:36]}  Bxe6 {[%clk 0:02:00]} 18. Bxe6+ {[%clk 0:02:35]}  Qxe6 {[%clk 0:02:01]} 19. Qd5 {[%clk 0:02:36]}  Qxd5 {[%clk 0:02:01]} 20. Rxd5 {[%clk 0:02:37]}  Rf8 {[%clk 0:01:59]} 21. f3 {[%clk 0:02:36]}  Bh6 {[%clk 0:01:59]} 22. Kd2 {[%clk 0:02:36]}  Kf7 {[%clk 0:01:59]} 23. Ke2 {[%clk 0:02:36]}  Ke6 {[%clk 0:01:59]} 24. Rhd1 {[%clk 0:02:36]}  Rd8 {[%clk 0:01:56]} 25. g3 {[%clk 0:02:35]}  c6 {[%clk 0:01:55]} 26. R5d3 {[%clk 0:02:35]}  d5 {[%clk 0:01:55]} 27. e4 {[%clk 0:02:31]}  d4 {[%clk 0:01:55]} 28. b4 {[%clk 0:02:29]}  a6 {[%clk 0:01:50]} 29. Rb1 {[%clk 0:02:27]}  Bf8 {[%clk 0:01:51]} 30. Rd2 {[%clk 0:02:24]}  b6 {[%clk 0:01:50]} 31. a3 {[%clk 0:02:24]}  Rc8 {[%clk 0:01:49]} 32. Rc2 {[%clk 0:02:23]}  Kd7 {[%clk 0:01:50]} 33. Kd3 {[%clk 0:02:23]}  Bd6 {[%clk 0:01:49]} 34. Rf1 {[%clk 0:02:20]}  Rf8 {[%clk 0:01:44]} 35. Rcf2 {[%clk 0:02:17]}  c5 {[%clk 0:01:42]} 36. bxc5 {[%clk 0:02:16]}  bxc5 {[%clk 0:01:42]} 37. Rb1 {[%clk 0:02:12]}  Kc6 {[%clk 0:01:39]} 38. Kc4 {[%clk 0:02:12]}  Bc7 {[%clk 0:01:38]} 39. Rb3 {[%clk 0:02:08]}  a5 {[%clk 0:01:37]} 40. a4 {[%clk 0:02:06]}  Bd8 {[%clk 0:01:34]} 41. Rb5 {[%clk 0:02:06]}  Bb6 {[%clk 0:01:34]} 42. Rfb2 {[%clk 0:02:04]}  Ba7 {[%clk 0:01:33]} 43. Rxa5 {[%clk 0:02:02]}  Bb8 {[%clk 0:01:19]} 44. Ra6+ {[%clk 0:01:59]}  Kc7 {[%clk 0:01:14]} 45. Rb3 {[%clk 0:02:00]}  g5 {[%clk 0:01:10]} 46. hxg5 {[%clk 0:01:59]}  Rg8 {[%clk 0:01:10]} 47. g6 {[%clk 0:01:58]}  Kc8 {[%clk 0:01:06]} 48. Kxc5 {[%clk 0:01:56]}  Bc7 {[%clk 0:01:04]} 49. Ra8+ {[%clk 0:01:54]}  Kd7 {[%clk 0:01:05]} 50. Rxg8 {[%clk 0:01:54]}  Bd6+ {[%clk 0:01:06]} 51. Kd5 {[%clk 0:01:54]}  h4 {[%clk 0:01:06]} 52. gxh4 {[%clk 0:01:54]}  Be7 {[%clk 0:01:06]} 53. h5 {[%clk 0:01:54]}  d3 {[%clk 0:01:05]} 54. Rxd3 {[%clk 0:01:54]}  Kc7 {[%clk 0:01:06]} 55. Kxe5 {[%clk 0:01:53]}  Kb6 {[%clk 0:01:06]} 56. Ke6 {[%clk 0:01:53]}  Ba3 {[%clk 0:01:06]} 57. Rxa3 {[%clk 0:01:53]}  Ka5 {[%clk 0:01:07]} 58. Rb3 {[%clk 0:01:52]}  Kxa4 {[%clk 0:01:08]} 59. Rbb8 {[%clk 0:01:52]}  Ka5 {[%clk 0:01:08]} 60. Rgc8 {[%clk 0:01:52]}  Ka6 {[%clk 0:01:09]} 61. g7 {[%clk 0:01:52]}  Ka7 {[%clk 0:01:09]} 62. h6 {[%clk 0:01:53]}  Ka6 {[%clk 0:01:10]} 63. h7 {[%clk 0:01:54]}  Ka7 {[%clk 0:01:10]} 64. h8=Q {[%clk 0:01:54]}  Ka6 {[%clk 0:01:11]} 65. g8=Q {[%clk 0:01:53]}  Ka7 {[%clk 0:01:12]} 66. f4 {[%clk 0:01:53]}  Ka6 {[%clk 0:01:13]} 67. f5 {[%clk 0:01:53]}  Ka7 {[%clk 0:01:14]} 68. f6 {[%clk 0:01:54]}  Ka6 {[%clk 0:01:15]} 69. f7 {[%clk 0:01:54]}  Ka7 {[%clk 0:01:16]} 70. f8=Q {[%clk 0:01:53]}  Ka6 {[%clk 0:01:17]} 71. Kd7 {[%clk 0:01:52]}  Ka7 {[%clk 0:01:17]} 72. e5 {[%clk 0:01:52]}  Ka6 {[%clk 0:01:18]} 73. e6 {[%clk 0:01:53]}  Ka7 {[%clk 0:01:18]} 74. e7 {[%clk 0:01:53]} 1-0


[Site "https://www.chess.com"]

[Event "Titled Tuesday Blitz March 28 Early 2023"]
[White "Buscar, Michael"]
[Black "Staudenhocker43"]
[WhiteFideId "2603616"]
[WhiteElo "2010"]
[BlackElo "2542"]
[Result "0-1"]
[Round "08"]
[TimeControl "180+2"]
[Date "2023.03.28"]
[WhiteClock "0:00:06"]
[BlackClock "0:01:39"]

1. d4 {[%clk 0:02:17]}  Nf6 {[%clk 0:02:59]} 2. c4 {[%clk 0:02:17]}  e6 {[%clk 0:02:59]} 3. Nc3 {[%clk 0:02:17]}  Bb4 {[%clk 0:02:59]} 4. e3 {[%clk 0:02:16]}  O-O {[%clk 0:02:59]} 5. Bd3 {[%clk 0:02:17]}  d5 {[%clk 0:02:59]} 6. Ne2 {[%clk 0:02:17]}  dxc4 {[%clk 0:02:58]} 7. Bxc4 {[%clk 0:02:17]}  c5 {[%clk 0:02:57]} 8. a3 {[%clk 0:02:17]}  Bxc3+ {[%clk 0:02:56]} 9. bxc3 {[%clk 0:02:17]}  Qc7 {[%clk 0:02:55]} 10. Bd3 {[%clk 0:02:15]}  b6 {[%clk 0:02:51]} 11. O-O {[%clk 0:02:14]}  Ba6 {[%clk 0:02:51]} 12. Bb2 {[%clk 0:02:00]}  Rd8 {[%clk 0:02:49]} 13. c4 {[%clk 0:01:57]}  cxd4 {[%clk 0:02:47]} 14. exd4 {[%clk 0:01:41]}  Bxc4 {[%clk 0:02:44]} 15. Rc1 {[%clk 0:01:35]}  b5 {[%clk 0:02:44]} 16. d5 {[%clk 0:01:17]}  Nxd5 {[%clk 0:02:35]} 17. Qc2 {[%clk 0:01:02]}  h6 {[%clk 0:02:23]} 18. Bxc4 {[%clk 0:00:54]}  bxc4 {[%clk 0:02:21]} 19. Qxc4 {[%clk 0:00:54]}  Qxc4 {[%clk 0:02:21]} 20. Rxc4 {[%clk 0:00:55]}  Nd7 {[%clk 0:02:21]} 21. Rg4 {[%clk 0:00:50]}  f6 {[%clk 0:02:18]} 22. Nf4 {[%clk 0:00:37]}  Nxf4 {[%clk 0:02:17]} 23. Rxf4 {[%clk 0:00:37]}  e5 {[%clk 0:02:15]} 24. Rc4 {[%clk 0:00:33]}  Rac8 {[%clk 0:02:13]} 25. Rfc1 {[%clk 0:00:30]}  Rxc4 {[%clk 0:02:12]} 26. Rxc4 {[%clk 0:00:31]}  Nb6 {[%clk 0:02:12]} 27. Rc1 {[%clk 0:00:31]}  Kf7 {[%clk 0:02:07]} 28. g4 {[%clk 0:00:27]}  Rc8 {[%clk 0:02:06]} 29. Rd1 {[%clk 0:00:20]}  Ke6 {[%clk 0:02:06]} 30. Bc1 {[%clk 0:00:18]}  Nd5 {[%clk 0:02:03]} 31. Bd2 {[%clk 0:00:15]}  Rc2 {[%clk 0:02:01]} 32. h3 {[%clk 0:00:13]}  a6 {[%clk 0:01:56]} 33. Kg2 {[%clk 0:00:13]}  Ra2 {[%clk 0:01:46]} 34. Be1 {[%clk 0:00:07]}  Rxa3 {[%clk 0:01:42]} 35. Rc1 {[%clk 0:00:05]}  Nf4+ {[%clk 0:01:42]} 36. Kf1 {[%clk 0:00:05]}  Rxh3 {[%clk 0:01:41]} 37. Kg1 {[%clk 0:00:03]}  Ne2+ {[%clk 0:01:39]} 38. Kg2 {[%clk 0:00:04]}  Nxc1 {[%clk 0:01:40]} 39. Kxh3 {[%clk 0:00:04]}  Nb3 {[%clk 0:01:40]} 40. Kg3 {[%clk 0:00:05]}  a5 {[%clk 0:01:40]} 41. Bc3 {[%clk 0:00:05]}  a4 {[%clk 0:01:39]} 42. Bb4 {[%clk 0:00:06]}  Nd4 {[%clk 0:01:39]} 0-1


[Site "https://www.chess.com"]

[Event "Titled Tuesday Blitz March 28 Early 2023"]
[White "Krsnik Cohar, Ivan Vihor"]
[Black "Skaric, Djuro"]
[WhiteFideId "14520044"]
[BlackFideId "934569"]
[WhiteElo "2414"]
[BlackElo "2282"]
[Result "0-1"]
[Round "08"]
[TimeControl "180+2"]
[Date "2023.03.28"]
[WhiteClock "0:00:02"]
[BlackClock "0:02:14"]

1. e4 {[%clk 0:02:58]}  d6 {[%clk 0:03:00]} 2. Nf3 {[%clk 0:02:58]}  g6 {[%clk 0:03:01]} 3. Nc3 {[%clk 0:02:58]}  Bg7 {[%clk 0:03:01]} 4. d4 {[%clk 0:02:59]}  Nf6 {[%clk 0:03:02]} 5. Bc4 {[%clk 0:02:58]}  O-O {[%clk 0:03:02]} 6. O-O {[%clk 0:02:57]}  Nc6 {[%clk 0:03:01]} 7. d5 {[%clk 0:02:54]}  Ne5 {[%clk 0:03:00]} 8. Nxe5 {[%clk 0:02:55]}  dxe5 {[%clk 0:03:01]} 9. a4 {[%clk 0:02:49]}  Ne8 {[%clk 0:03:01]} 10. b4 {[%clk 0:02:36]}  Nd6 {[%clk 0:02:59]} 11. Bd3 {[%clk 0:02:35]}  h6 {[%clk 0:02:59]} 12. Ne2 {[%clk 0:02:18]}  f5 {[%clk 0:02:58]} 13. f3 {[%clk 0:02:18]}  f4 {[%clk 0:02:57]} 14. c4 {[%clk 0:02:18]}  g5 {[%clk 0:02:57]} 15. c5 {[%clk 0:02:17]}  Nf7 {[%clk 0:02:57]} 16. Bc4 {[%clk 0:02:04]}  Kh7 {[%clk 0:02:57]} 17. a5 {[%clk 0:01:51]}  h5 {[%clk 0:02:56]} 18. a6 {[%clk 0:01:50]}  b6 {[%clk 0:02:55]} 19. Ba3 {[%clk 0:01:25]}  Nh6 {[%clk 0:02:54]} 20. d6 {[%clk 0:01:20]}  exd6 {[%clk 0:02:52]} 21. cxd6 {[%clk 0:01:21]}  cxd6 {[%clk 0:02:52]} 22. b5 {[%clk 0:01:18]}  Rf6 {[%clk 0:02:51]} 23. Qd5 {[%clk 0:01:06]}  Rb8 {[%clk 0:02:49]} 24. Rfd1 {[%clk 0:00:56]}  Be6 {[%clk 0:02:49]} 25. Qxd6 {[%clk 0:00:48]}  Bxc4 {[%clk 0:02:46]} 26. Qxd8 {[%clk 0:00:43]}  Rxd8 {[%clk 0:02:46]} 27. Rxd8 {[%clk 0:00:43]}  Bxe2 {[%clk 0:02:46]} 28. Rd7 {[%clk 0:00:34]}  Rf7 {[%clk 0:02:44]} 29. Rxf7 {[%clk 0:00:31]}  Nxf7 {[%clk 0:02:43]} 30. Rb1 {[%clk 0:00:30]}  g4 {[%clk 0:02:43]} 31. Bc5 {[%clk 0:00:24]}  Bf6 {[%clk 0:02:26]} 32. Bxb6 {[%clk 0:00:23]}  Nd6 {[%clk 0:02:26]} 33. Bxa7 {[%clk 0:00:18]}  Nxb5 {[%clk 0:02:26]} 34. Bb8 {[%clk 0:00:13]}  gxf3 {[%clk 0:02:24]} 35. gxf3 {[%clk 0:00:12]}  Bxf3 {[%clk 0:02:24]} 36. Rxb5 {[%clk 0:00:11]}  Bxe4 {[%clk 0:02:24]} 37. Bxe5 {[%clk 0:00:10]}  Bd8 {[%clk 0:02:21]} 38. a7 {[%clk 0:00:07]}  f3 {[%clk 0:02:20]} 39. Rb8 {[%clk 0:00:06]}  Bg5 {[%clk 0:02:18]} 40. Kf2 {[%clk 0:00:04]}  Bh4+ {[%clk 0:02:17]} 41. Bg3 {[%clk 0:00:04]}  Be7 {[%clk 0:02:14]} 42. a8=Q {[%clk 0:00:03]}  Bc5+ {[%clk 0:02:15]} 43. Ke1 {[%clk 0:00:03]}  Bxa8 {[%clk 0:02:14]} 44. Rxa8 {[%clk 0:00:03]}  Kg6 {[%clk 0:02:15]} 45. Ra6+ {[%clk 0:00:01]}  Kf7 {[%clk 0:02:14]} 46. Ra5 {[%clk 0:00:02]}  Bb4+ {[%clk 0:02:13]} 47. Kf2 {[%clk 0:00:02]}  Bxa5 {[%clk 0:02:14]} 48. Kxf3 {[%clk 0:00:02]}  Kg6 {[%clk 0:02:14]} 0-1


[Site "https://www.chess.com"]

[Event "Titled Tuesday Blitz March 28 Early 2023"]
[White "Kopczynski, Michal"]
[Black "Cuenca Jimenez, Jose Fernando"]
[WhiteFideId "1124200"]
[BlackFideId "2255570"]
[WhiteElo "2212"]
[BlackElo "2429"]
[Result "0-1"]
[Round "08"]
[TimeControl "180+2"]
[Date "2023.03.28"]
[WhiteClock "0:01:56"]
[BlackClock "0:02:07"]

1. e4 {[%clk 0:03:00]}  d6 {[%clk 0:02:58]} 2. d4 {[%clk 0:03:01]}  Nf6 {[%clk 0:02:58]} 3. Nc3 {[%clk 0:03:01]}  e5 {[%clk 0:02:58]} 4. d5 {[%clk 0:02:58]}  c6 {[%clk 0:02:50]} 5. Bg5 {[%clk 0:02:55]}  Be7 {[%clk 0:02:49]} 6. f3 {[%clk 0:02:53]}  Nxd5 {[%clk 0:02:48]} 7. Nxd5 {[%clk 0:02:45]}  Bxg5 {[%clk 0:02:46]} 8. Nc3 {[%clk 0:02:44]}  O-O {[%clk 0:02:45]} 9. Bc4 {[%clk 0:02:43]}  b5 {[%clk 0:02:45]} 10. Bb3 {[%clk 0:02:43]}  a5 {[%clk 0:02:39]} 11. a4 {[%clk 0:02:43]}  b4 {[%clk 0:02:39]} 12. Nce2 {[%clk 0:02:43]}  Ba6 {[%clk 0:02:36]} 13. Ng3 {[%clk 0:02:38]}  g6 {[%clk 0:02:32]} 14. N1e2 {[%clk 0:02:38]}  Be3 {[%clk 0:02:30]} 15. Nf1 {[%clk 0:02:35]}  Bc5 {[%clk 0:02:29]} 16. Qd2 {[%clk 0:02:30]}  Qh4+ {[%clk 0:02:27]} 17. g3 {[%clk 0:02:28]}  Qf6 {[%clk 0:02:23]} 18. f4 {[%clk 0:02:23]}  exf4 {[%clk 0:02:23]} 19. Nxf4 {[%clk 0:02:22]}  Qxb2 {[%clk 0:02:21]} 20. Rd1 {[%clk 0:02:19]}  Nd7 {[%clk 0:02:20]} 21. Ne3 {[%clk 0:02:19]}  Rae8 {[%clk 0:02:16]} 22. Kf2 {[%clk 0:02:05]}  Rxe4 {[%clk 0:02:14]} 23. Rhe1 {[%clk 0:02:05]}  Qe5 {[%clk 0:02:10]} 24. Ng2 {[%clk 0:02:02]}  Nf6 {[%clk 0:02:08]} 25. Kg1 {[%clk 0:01:56]}  Ng4 {[%clk 0:02:07]} 0-1


[Site "https://www.chess.com"]

[Event "Titled Tuesday Blitz March 28 Early 2023"]
[White "Sielecki, Christof"]
[Black "Hindermann, Felix"]
[WhiteFideId "4620437"]
[BlackFideId "1305212"]
[WhiteElo "2443"]
[BlackElo "2206"]
[Result "0-1"]
[Round "08"]
[TimeControl "180+2"]
[Date "2023.03.28"]
[WhiteClock "0:00:19"]
[BlackClock "0:00:03"]

1. e4 {[%clk 0:03:00]}  e6 {[%clk 0:02:52]} 2. d4 {[%clk 0:03:00]}  d5 {[%clk 0:02:52]} 3. Nd2 {[%clk 0:03:01]}  Nc6 {[%clk 0:02:51]} 4. Ngf3 {[%clk 0:03:00]}  Nf6 {[%clk 0:02:51]} 5. e5 {[%clk 0:03:01]}  Nd7 {[%clk 0:02:52]} 6. Be2 {[%clk 0:03:01]}  f6 {[%clk 0:02:52]} 7. exf6 {[%clk 0:03:02]}  Qxf6 {[%clk 0:02:53]} 8. Nf1 {[%clk 0:03:02]}  Bd6 {[%clk 0:02:53]} 9. Ne3 {[%clk 0:03:02]}  O-O {[%clk 0:02:50]} 10. O-O {[%clk 0:03:02]}  Qg6 {[%clk 0:02:46]} 11. c4 {[%clk 0:02:57]}  Nf6 {[%clk 0:02:45]} 12. c5 {[%clk 0:02:54]}  Bf4 {[%clk 0:02:45]} 13. g3 {[%clk 0:02:45]}  Ne4 {[%clk 0:02:25]} 14. Nh4 {[%clk 0:02:16]}  Qg5 {[%clk 0:02:21]} 15. Nhg2 {[%clk 0:02:14]}  Bxe3 {[%clk 0:01:18]} 16. Bxe3 {[%clk 0:02:15]}  Qf6 {[%clk 0:01:17]} 17. f3 {[%clk 0:01:46]}  Ng5 {[%clk 0:01:16]} 18. Qd2 {[%clk 0:01:34]}  Nh3+ {[%clk 0:01:12]} 19. Kh1 {[%clk 0:01:34]}  e5 {[%clk 0:00:58]} 20. dxe5 {[%clk 0:01:34]}  Qxe5 {[%clk 0:00:59]} 21. f4 {[%clk 0:01:30]}  Qf6 {[%clk 0:00:45]} 22. Rad1 {[%clk 0:01:06]}  d4 {[%clk 0:00:34]} 23. Bxd4 {[%clk 0:01:01]}  Nxd4 {[%clk 0:00:35]} 24. Qxd4 {[%clk 0:01:01]}  Be6 {[%clk 0:00:30]} 25. Qxf6 {[%clk 0:01:00]}  Rxf6 {[%clk 0:00:28]} 26. a3 {[%clk 0:00:52]}  c6 {[%clk 0:00:25]} 27. Ne3 {[%clk 0:00:47]}  Re8 {[%clk 0:00:22]} 28. Bf3 {[%clk 0:00:37]}  g5 {[%clk 0:00:18]} 29. Ng4 {[%clk 0:00:36]}  Rff8 {[%clk 0:00:12]} 30. fxg5 {[%clk 0:00:23]}  Rxf3 {[%clk 0:00:09]} 31. Rxf3 {[%clk 0:00:20]}  Bxg4 {[%clk 0:00:09]} 32. Rdf1 {[%clk 0:00:19]}  Bxf3+ {[%clk 0:00:07]} 33. Rxf3 {[%clk 0:00:20]}  Re2 {[%clk 0:00:06]} 34. g6 {[%clk 0:00:18]}  hxg6 {[%clk 0:00:06]} 35. Rd3 {[%clk 0:00:18]}  Kf7 {[%clk 0:00:04]} 36. Rd7+ {[%clk 0:00:18]}  Re7 {[%clk 0:00:04]} 37. Rxb7 {[%clk 0:00:19]}  Rxb7 {[%clk 0:00:03]} 0-1


[Site "https://www.chess.com"]